[Event "*** Titled Tuesday 3|2 Blitz"]
[Site "Chess.com"]
[Date "2015.07.07"]
[Round "3"]
[White "Tomsel"]
[Black "Canonkasparov"]
[Result "0-1"]
[WhiteElo "2297"]
[BlackElo "2243"]
[TimeControl "180+2"]
[EndTime "11:35:03 PDT"]
[Termination "Canonkasparov won on time"]

1. d4 {[%clk 0:02:54.8]} 1... d5 {[%clk 0:03:00]} 2. Bf4 {[%clk 0:02:52.4]} 2...
Nf6 {[%clk 0:02:56]} 3. e3 {[%clk 0:02:53.5]} 3... Bf5 {[%clk 0:02:53.3]} 4. c4
{[%clk 0:02:54.5]} 4... c6 {[%clk 0:02:53]} 5. Qb3 {[%clk 0:02:55.5]} 5... Qb6
{[%clk 0:02:53]} 6. Nd2 {[%clk 0:02:56.8]} 6... Nbd7 {[%clk 0:02:46.4]} 7. c5
{[%clk 0:02:57.7]} 7... Qxb3 {[%clk 0:02:46.2]} 8. axb3 {[%clk 0:02:59.6]} 8...
Nh5 {[%clk 0:02:40]} 9. b4 {[%clk 0:02:58.7]} 9... Nxf4 {[%clk 0:02:39.4]} 10.
exf4 {[%clk 0:03:00.4]} 10... a6 {[%clk 0:02:39.2]} 11. b5 {[%clk 0:03:01.2]}
11... cxb5 {[%clk 0:02:39.2]} 12. Bxb5 {[%clk 0:03:00.8]} 12... e6 {[%clk
0:02:35.2]} 13. Ngf3 {[%clk 0:03:00.6]} 13... f6 {[%clk 0:02:34.2]} 14. O-O
{[%clk 0:02:39.9]} 14... Be7 {[%clk 0:02:28.1]} 15. b4 {[%clk 0:02:26.1]} 15...
Rc8 {[%clk 0:02:27.4]} 16. Ba4 {[%clk 0:02:22]} 16... Rc7 {[%clk 0:02:23.2]} 17.
Rfe1 {[%clk 0:02:18.3]} 17... Kf7 {[%clk 0:02:22.6]} 18. Nh4 {[%clk 0:02:14.7]}
18... Bg6 {[%clk 0:02:15.6]} 19. f5 {[%clk 0:02:12.5]} 19... Bxf5 {[%clk
0:02:10.7]} 20. Nxf5 {[%clk 0:02:12.2]} 20... exf5 {[%clk 0:02:11.2]} 21. Bb3
{[%clk 0:02:13.8]} 21... Nb8 {[%clk 0:02:05.8]} 22. Bxd5+ {[%clk 0:02:14.3]}
22... Kg6 {[%clk 0:02:02.6]} 23. Bb3 {[%clk 0:01:49.4]} 23... Nc6 {[%clk
0:02:00.2]} 24. d5 {[%clk 0:01:49.1]} 24... Nxb4 {[%clk 0:01:57.3]} 25. d6
{[%clk 0:01:50.6]} 25... Bxd6 {[%clk 0:01:55.4]} 26. cxd6 {[%clk 0:01:52.5]}
26... Rd7 {[%clk 0:01:54]} 27. Re6 {[%clk 0:01:48]} 27... Rhd8 {[%clk
0:01:52.4]} 28. Nf3 {[%clk 0:01:33.8]} 28... Rxd6 {[%clk 0:01:50.5]} 29. Ne5+
{[%clk 0:00:55]} 29... Kh5 {[%clk 0:01:34.2]} 30. Rxd6 {[%clk 0:00:49.5]} 30...
Rxd6 {[%clk 0:01:34.2]} 31. Bd1+ {[%clk 0:00:50.4]} 31... Rxd1+ {[%clk
0:01:33.2]} 32. Rxd1 {[%clk 0:00:52.3]} 32... fxe5 {[%clk 0:01:32.3]} 33. Rd7
{[%clk 0:00:54]} 33... b5 {[%clk 0:01:25.5]} 34. Rxg7 {[%clk 0:00:55]} 34... h6
{[%clk 0:01:22.7]} 35. f3 {[%clk 0:00:49.6]} 35... Nd3 {[%clk 0:01:12.2]} 36.
Rd7 {[%clk 0:00:36.4]} 36... e4 {[%clk 0:01:04]} 37. g4+ {[%clk 0:00:22.1]}
37... Kg5 {[%clk 0:00:58.7]} 38. gxf5 {[%clk 0:00:23.3]} 38... Kxf5 {[%clk
0:00:59.1]} 39. Rd5+ {[%clk 0:00:18.7]} 39... Kf4 {[%clk 0:00:58.2]} 40. fxe4
{[%clk 0:00:13.6]} 40... Kxe4 {[%clk 0:00:58.6]} 41. Rd6 {[%clk 0:00:15.2]}
41... Nc5 {[%clk 0:00:57.8]} 42. Rxh6 {[%clk 0:00:14.4]} 42... a5 {[%clk
0:00:54.9]} 43. Rh5 {[%clk 0:00:14.1]} 43... Kd4 {[%clk 0:00:54.7]} 44. Kf1
{[%clk 0:00:11.9]} 44... a4 {[%clk 0:00:54.5]} 45. Rh8 {[%clk 0:00:08]} 45... a3
{[%clk 0:00:54.5]} 46. Ra8 {[%clk 0:00:09]} 46... Na4 {[%clk 0:00:54]} 47. Rd8+
{[%clk 0:00:03]} 47... Kc3 {[%clk 0:00:51.8]} 48. Rd1 {[%clk 0:00:04.2]} 48...
b4 {[%clk 0:00:49]} 49. h4 {[%clk 0:00:05.1]} 49... Nc5 {[%clk 0:00:44.1]} 50.
h5 {[%clk 0:00:05.6]} 50... Ne4 {[%clk 0:00:44]} 51. h6 {[%clk 0:00:05.1]} 51...
Ng5 {[%clk 0:00:44.1]} 52. Ke2 {[%clk 0:00:03.5]} 52... a2 {[%clk 0:00:44]} 0-1

[Event "*** Titled Tuesday 3|2 Blitz"]
[Site "Chess.com"]
[Date "2015.07.07"]
[Round "3"]
[White "HansCoolNiemann"]
[Black "MinhGTrAn"]
[Result "0-1"]
[WhiteElo "1951"]
[BlackElo "2573"]
[TimeControl "180+2"]
[EndTime "11:35:31 PDT"]
[Termination "MinhGTrAn won by checkmate"]

1. d4 {[%clk 0:03:01.9]} 1... Nf6 {[%clk 0:03:00.8]} 2. c4 {[%clk 0:03:02.5]}
2... e6 {[%clk 0:03:02]} 3. Nf3 {[%clk 0:03:02.8]} 3... c5 {[%clk 0:03:03.3]} 4.
d5 {[%clk 0:03:03.3]} 4... b5 {[%clk 0:03:03.1]} 5. dxe6 {[%clk 0:03:03.8]} 5...
fxe6 {[%clk 0:03:05]} 6. cxb5 {[%clk 0:03:04.3]} 6... d5 {[%clk 0:03:06.7]} 7.
Nc3 {[%clk 0:03:03.9]} 7... Bd6 {[%clk 0:03:03.5]} 8. e4 {[%clk 0:03:02.1]} 8...
dxe4 {[%clk 0:02:14.6]} 9. Ng5 {[%clk 0:03:02.4]} 9... Bb7 {[%clk 0:02:16.2]}
10. Nxe6 {[%clk 0:02:58.2]} 10... Qe7 {[%clk 0:02:17.7]} 11. Nxg7+ {[%clk
0:02:58.7]} 11... Qxg7 {[%clk 0:02:11.6]} 12. Qxd6 {[%clk 0:02:58.8]} 12... Nbd7
{[%clk 0:02:11.8]} 13. Qe6+ {[%clk 0:02:46.4]} 13... Kd8 {[%clk 0:01:53.4]} 14.
Bf4 {[%clk 0:02:42.5]} 14... Re8 {[%clk 0:01:54.2]} 15. Qd6 {[%clk 0:02:42.5]}
15... Rc8 {[%clk 0:01:47.7]} 16. Rd1 {[%clk 0:02:36.4]} 16... Re7 {[%clk
0:01:30.9]} 17. b6 {[%clk 0:02:34.1]} 17... a6 {[%clk 0:01:18.6]} 18. Bg3 {[%clk
0:01:45.7]} 18... Ke8 {[%clk 0:01:15]} 19. Bc4 {[%clk 0:01:43]} 19... Rc6 {[%clk
0:00:50.7]} 20. Qd2 {[%clk 0:01:35.9]} 20... Rxb6 {[%clk 0:00:36.7]} 21. O-O
{[%clk 0:01:28]} 21... h5 {[%clk 0:00:34.2]} 22. Qf4 {[%clk 0:01:19.1]} 22...
Rb4 {[%clk 0:00:29.8]} 23. b3 {[%clk 0:01:12]} 23... Ne5 {[%clk 0:00:27.1]} 24.
Be2 {[%clk 0:00:59.4]} 24... e3 {[%clk 0:00:23.4]} 25. Qf5 {[%clk 0:00:46.2]}
25... h4 {[%clk 0:00:23.1]} 26. Nd5 {[%clk 0:00:19.3]} 26... Bxd5 {[%clk
0:00:22.7]} 27. Rxd5 {[%clk 0:00:11]} 27... Nxd5 {[%clk 0:00:14.5]} 28. Qc8+
{[%clk 0:00:11.7]} 28... Kf7 {[%clk 0:00:14.6]} 29. Bh5+ {[%clk 0:00:12.5]}
29... Ng6 {[%clk 0:00:14.5]} 30. fxe3+ {[%clk 0:00:11.5]} 30... Nf6 {[%clk
0:00:13.9]} 31. Qxc5 {[%clk 0:00:08.4]} 31... hxg3 {[%clk 0:00:10.4]} 32. Qxb4
{[%clk 0:00:08.2]} 32... gxh2+ {[%clk 0:00:12.3]} 33. Kh1 {[%clk 0:00:09.2]}
33... Qh6 {[%clk 0:00:13.7]} 34. Qc4+ {[%clk 0:00:10]} 34... Kg7 {[%clk
0:00:14.8]} 35. Qd4 {[%clk 0:00:11.3]} 35... Ne5 {[%clk 0:00:14.1]} 36. Bf3
{[%clk 0:00:11]} 36... Qg5 {[%clk 0:00:08.1]} 37. Qd6 {[%clk 0:00:10.4]} 37...
Rd7 {[%clk 0:00:07.6]} 38. Qe6 {[%clk 0:00:11.4]} 38... Ng6 {[%clk 0:00:05.8]}
39. Be4 {[%clk 0:00:09.7]} 39... Re7 {[%clk 0:00:06.8]} 40. Qf5 {[%clk
0:00:09.4]} 40... Nxe4 {[%clk 0:00:07.2]} 41. Kxh2 {[%clk 0:00:07.8]} 41... Qxf5
{[%clk 0:00:07.1]} 42. Rxf5 {[%clk 0:00:09.7]} 42... Nd6 {[%clk 0:00:07.9]} 43.
Ra5 {[%clk 0:00:10.7]} 43... Ra7 {[%clk 0:00:08.2]} 44. b4 {[%clk 0:00:12.1]}
44... Ne7 {[%clk 0:00:07.8]} 45. a4 {[%clk 0:00:12.7]} 45... Nc4 {[%clk
0:00:08.1]} 46. Rc5 {[%clk 0:00:13.5]} 46... Nxe3 {[%clk 0:00:09.5]} 47. b5
{[%clk 0:00:14.3]} 47... a5 {[%clk 0:00:11.1]} 48. b6 {[%clk 0:00:14.4]} 48...
Rb7 {[%clk 0:00:11]} 49. Rxa5 {[%clk 0:00:15.7]} 49... Rxb6 {[%clk 0:00:12.4]}
50. Re5 {[%clk 0:00:17.2]} 50... Ng4+ {[%clk 0:00:12.7]} 51. Kg3 {[%clk
0:00:17]} 51... Nxe5 {[%clk 0:00:14.6]} 52. Kf4 {[%clk 0:00:18.2]} 52... Kf6
{[%clk 0:00:15.7]} 53. Ke4 {[%clk 0:00:19.6]} 53... Rb4+ {[%clk 0:00:16.9]} 54.
Ke3 {[%clk 0:00:21.2]} 54... Rxa4 {[%clk 0:00:18.8]} 55. Kd2 {[%clk 0:00:22.2]}
55... Nd5 {[%clk 0:00:20.2]} 56. Ke2 {[%clk 0:00:22.8]} 56... Ra2+ {[%clk
0:00:21.7]} 57. Kf1 {[%clk 0:00:24.4]} 57... Ne3+ {[%clk 0:00:23]} 58. Kg1
{[%clk 0:00:26.3]} 58... N5g4 {[%clk 0:00:22.7]} 59. g3 {[%clk 0:00:27]} 59...
Ra1# {[%clk 0:00:23.7]} 0-1

[Event "*** Titled Tuesday 3|2 Blitz"]
[Site "Chess.com"]
[Date "2015.07.07"]
[Round "3"]
[White "FancyPlaySyndrome"]
[Black "stefanodinn"]
[Result "1-0"]
[WhiteElo "2212"]
[BlackElo "2128"]
[TimeControl "180+2"]
[EndTime "11:35:52 PDT"]
[Termination "FancyPlaySyndrome won by resignation"]

1. e4 {[%clk 0:03:01.9]} 1... e5 {[%clk 0:02:59.4]} 2. Nf3 {[%clk 0:03:02.9]}
2... Nc6 {[%clk 0:02:59.7]} 3. c3 {[%clk 0:03:04]} 3... Nf6 {[%clk 0:02:56.4]}
4. d4 {[%clk 0:03:03.3]} 4... Nxe4 {[%clk 0:02:54.2]} 5. d5 {[%clk 0:03:04.6]}
5... Ne7 {[%clk 0:02:33.2]} 6. Nxe5 {[%clk 0:03:04.7]} 6... Ng6 {[%clk
0:02:32.5]} 7. Qf3 {[%clk 0:02:56.9]} 7... Nf6 {[%clk 0:02:08.5]} 8. Nxg6 {[%clk
0:02:45.5]} 8... hxg6 {[%clk 0:02:08.8]} 9. Bg5 {[%clk 0:02:40.7]} 9... Be7
{[%clk 0:02:08.7]} 10. Bc4 {[%clk 0:02:30.5]} 10... d6 {[%clk 0:02:06.9]} 11.
Nd2 {[%clk 0:02:31.6]} 11... O-O {[%clk 0:02:06.6]} 12. Be3 {[%clk 0:02:00.3]}
12... Ng4 {[%clk 0:01:56.2]} 13. Bd4 {[%clk 0:01:56.6]} 13... Bf6 {[%clk
0:01:47]} 14. O-O-O {[%clk 0:01:14.7]} 14... Ne5 {[%clk 0:01:26.6]} 15. Bxe5
{[%clk 0:00:57.3]} 15... Bxe5 {[%clk 0:01:26.2]} 16. h4 {[%clk 0:00:50.6]} 16...
Qf6 {[%clk 0:01:20.4]} 17. Rde1 {[%clk 0:00:39.9]} 17... Qxf3 {[%clk 0:01:07.1]}
18. Nxf3 {[%clk 0:00:41.8]} 18... Bf4+ {[%clk 0:01:07.8]} 19. Kc2 {[%clk
0:00:42.4]} 19... Bf5+ {[%clk 0:01:08.2]} 20. Bd3 {[%clk 0:00:43.8]} 20... Bxd3+
{[%clk 0:00:45.7]} 21. Kxd3 {[%clk 0:00:45.7]} 21... Rfe8 {[%clk 0:00:46.4]} 22.
g3 {[%clk 0:00:42.8]} 22... Be5 {[%clk 0:00:45.5]} 23. Nd2 {[%clk 0:00:43.7]}
23... f5 {[%clk 0:00:42.3]} 24. Nc4 {[%clk 0:00:34.6]} 24... Kf7 {[%clk
0:00:36.8]} 25. Na5 {[%clk 0:00:30.3]} 25... b6 {[%clk 0:00:26.8]} 26. Nc6
{[%clk 0:00:30.8]} 26... a6 {[%clk 0:00:24.7]} 27. a4 {[%clk 0:00:27.6]} 27...
Bf6 {[%clk 0:00:22.7]} 28. b3 {[%clk 0:00:25.6]} 28... g5 {[%clk 0:00:15.3]} 29.
hxg5 {[%clk 0:00:23.2]} 29... Bxg5 {[%clk 0:00:16.2]} 30. Nd4 {[%clk 0:00:24.2]}
30... Rxe1 {[%clk 0:00:09.6]} 31. Rxe1 {[%clk 0:00:26.1]} 31... g6 {[%clk
0:00:10.1]} 32. Ne6 {[%clk 0:00:23.7]} 32... Bd8 {[%clk 0:00:10.2]} 33. Rh1
{[%clk 0:00:23.5]} 33... c6 {[%clk 0:00:06.7]} 34. Rh7+ {[%clk 0:00:18.1]} 34...
Kf6 {[%clk 0:00:07.5]} 35. Kd4 {[%clk 0:00:12.2]} 35... cxd5 {[%clk 0:00:07]}
36. Kxd5 {[%clk 0:00:13.4]} 36... Be7 {[%clk 0:00:06.4]} 37. c4 {[%clk
0:00:11.4]} 37... Rc8 {[%clk 0:00:06.5]} 38. b4 {[%clk 0:00:12]} 38... a5 {[%clk
0:00:06.9]} 39. b5 {[%clk 0:00:11.5]} 39... g5 {[%clk 0:00:05.8]} 40. f4 {[%clk
0:00:12.2]} 40... gxf4 {[%clk 0:00:06.3]} 41. gxf4 {[%clk 0:00:13.7]} 41... Rg8
{[%clk 0:00:06]} 42. Rh6+ {[%clk 0:00:13.6]} 42... Kf7 {[%clk 0:00:06.5]} 43.
Rh7+ {[%clk 0:00:14.3]} 43... Kf6 {[%clk 0:00:07.5]} 44. Nd4 {[%clk 0:00:14.7]}
44... Rg4 {[%clk 0:00:06.9]} 45. Rh6+ {[%clk 0:00:14.7]} 45... Kf7 {[%clk
0:00:07.1]} 46. Rh7+ {[%clk 0:00:15.3]} 46... Kf6 {[%clk 0:00:07.3]} 47. Nc6
{[%clk 0:00:16.9]} 47... Bf8 {[%clk 0:00:07.4]} 48. Nd8 {[%clk 0:00:15.5]} 48...
Rxf4 {[%clk 0:00:07]} 49. Rf7+ {[%clk 0:00:16.4]} 49... Kg5 {[%clk 0:00:05.2]}
50. Rxf8 {[%clk 0:00:17.4]} 50... Rf1 {[%clk 0:00:04.7]} 51. Ne6+ {[%clk
0:00:18.1]} 51... Kg4 {[%clk 0:00:05]} 52. Kxd6 {[%clk 0:00:19.3]} 52... Rc1
{[%clk 0:00:03.7]} 53. c5 {[%clk 0:00:19.8]} 53... bxc5 {[%clk 0:00:04.2]} 54.
b6 {[%clk 0:00:21.4]} 54... Rb1 {[%clk 0:00:04.8]} 55. Kc7 {[%clk 0:00:21.5]}
55... c4 {[%clk 0:00:05.5]} 56. b7 {[%clk 0:00:21]} 56... c3 {[%clk 0:00:06.3]}
57. b8=Q {[%clk 0:00:22.6]} 57... Rxb8 {[%clk 0:00:06.3]} 58. Kxb8 {[%clk
0:00:24.5]} 1-0

[Event "*** Titled Tuesday 3|2 Blitz"]
[Site "Chess.com"]
[Date "2015.07.07"]
[Round "3"]
[White "Hikaru"]
[Black "Dr-Bassem"]
[Result "1-0"]
[WhiteElo "2836"]
[BlackElo "2475"]
[TimeControl "180+2"]
[EndTime "11:36:18 PDT"]
[Termination "Hikaru won by resignation"]

1. b3 {[%clk 0:03:01.9]} 1... e5 {[%clk 0:02:58.2]} 2. Bb2 {[%clk 0:03:03.8]}
2... Nc6 {[%clk 0:02:59.7]} 3. e3 {[%clk 0:03:05.3]} 3... Nf6 {[%clk 0:03:00.3]}
4. Bb5 {[%clk 0:03:05.5]} 4... Bd6 {[%clk 0:03:01.7]} 5. Bxc6 {[%clk 0:03:06.2]}
5... dxc6 {[%clk 0:03:02.6]} 6. d3 {[%clk 0:03:08.1]} 6... e4 {[%clk 0:02:43.3]}
7. dxe4 {[%clk 0:02:17]} 7... Nxe4 {[%clk 0:02:44.9]} 8. Qd4 {[%clk 0:02:18]}
8... Nf6 {[%clk 0:02:43]} 9. Nd2 {[%clk 0:02:15.3]} 9... Qe7 {[%clk 0:01:57.1]}
10. Ngf3 {[%clk 0:02:08.5]} 10... O-O {[%clk 0:01:46.1]} 11. Qh4 {[%clk
0:02:02.6]} 11... Nd5 {[%clk 0:01:37]} 12. Qxe7 {[%clk 0:02:04.5]} 12... Bxe7
{[%clk 0:01:38.4]} 13. O-O-O {[%clk 0:02:05]} 13... a5 {[%clk 0:01:30.8]} 14. a4
{[%clk 0:02:02.5]} 14... Bb4 {[%clk 0:01:29.4]} 15. Ne4 {[%clk 0:01:55]} 15...
Bf5 {[%clk 0:01:28.1]} 16. Ng3 {[%clk 0:01:55]} 16... Bg6 {[%clk 0:01:23.4]} 17.
Nh4 {[%clk 0:01:54.8]} 17... Rad8 {[%clk 0:01:21.4]} 18. e4 {[%clk 0:01:43.4]}
18... Nc3 {[%clk 0:01:14.2]} 19. Bxc3 {[%clk 0:01:44.5]} 19... Bxc3 {[%clk
0:01:16.1]} 20. Ne2 {[%clk 0:01:42]} 20... Bb4 {[%clk 0:01:05.2]} 21. f3 {[%clk
0:01:43.2]} 21... Ba3+ {[%clk 0:00:53.4]} 22. Kb1 {[%clk 0:01:44.1]} 22... Be7
{[%clk 0:00:48.6]} 23. Nxg6 {[%clk 0:01:44]} 23... hxg6 {[%clk 0:00:50.5]} 24.
c3 {[%clk 0:01:33.6]} 24... Bf6 {[%clk 0:00:47]} 25. Kc2 {[%clk 0:01:34.5]}
25... Rfe8 {[%clk 0:00:45.5]} 26. Rxd8 {[%clk 0:01:34.8]} 26... Rxd8 {[%clk
0:00:47.4]} 27. Rd1 {[%clk 0:01:35.9]} 27... Rxd1 {[%clk 0:00:48]} 28. Kxd1
{[%clk 0:01:36.6]} 28... g5 {[%clk 0:00:48.7]} 29. Kc2 {[%clk 0:01:36.5]} 29...
Be5 {[%clk 0:00:48.8]} 30. h3 {[%clk 0:01:34]} 30... Kf8 {[%clk 0:00:49.2]} 31.
b4 {[%clk 0:01:35.5]} 31... axb4 {[%clk 0:00:46.2]} 32. cxb4 {[%clk 0:01:37.4]}
32... Ke7 {[%clk 0:00:47.2]} 33. Nc1 {[%clk 0:01:35.7]} 33... Bd6 {[%clk
0:00:42.6]} 34. Nd3 {[%clk 0:01:36.6]} 34... f6 {[%clk 0:00:42.9]} 35. Kc3
{[%clk 0:01:12.9]} 35... Kd7 {[%clk 0:00:40.4]} 36. a5 {[%clk 0:01:05.9]} 36...
b6 {[%clk 0:00:35.3]} 37. Kb3 {[%clk 0:00:48.2]} 37... Kc8 {[%clk 0:00:35.5]}
38. Nb2 {[%clk 0:00:44.9]} 38... Kb7 {[%clk 0:00:34.4]} 39. Nc4 {[%clk 0:00:46]}
39... Bf4 {[%clk 0:00:35.1]} 40. Nb2 {[%clk 0:00:38.3]} 40... Ka6 {[%clk
0:00:35.8]} 41. Nd3 {[%clk 0:00:38.1]} 41... bxa5 {[%clk 0:00:29.6]} 42. bxa5
{[%clk 0:00:30.1]} 42... Kxa5 {[%clk 0:00:21.5]} 43. Kc4 {[%clk 0:00:31.4]}
43... Bd6 {[%clk 0:00:18.9]} 44. Nc5 {[%clk 0:00:27.8]} 44... Kb6 {[%clk
0:00:19.6]} 45. Ne6 {[%clk 0:00:28.6]} 45... g6 {[%clk 0:00:21]} 46. Nd8 {[%clk
0:00:25.1]} 46... c5 {[%clk 0:00:19.9]} 47. Nf7 {[%clk 0:00:26.6]} 47... Kc6
{[%clk 0:00:19.5]} 48. Nh8 {[%clk 0:00:26.3]} 48... Kd7 {[%clk 0:00:20.8]} 49.
Nxg6 {[%clk 0:00:26.4]} 49... Ke8 {[%clk 0:00:19.8]} 50. h4 {[%clk 0:00:26.9]}
50... gxh4 {[%clk 0:00:16.2]} 51. Nxh4 {[%clk 0:00:27.6]} 51... Kf7 {[%clk
0:00:17.7]} 52. Kd5 {[%clk 0:00:24]} 52... Kg7 {[%clk 0:00:18.1]} 53. g3 {[%clk
0:00:21.6]} 53... Kh6 {[%clk 0:00:18.6]} 54. Nf5+ {[%clk 0:00:22.4]} 54... Kg5
{[%clk 0:00:19.7]} 55. Kc4 {[%clk 0:00:17.9]} 55... Bxg3 {[%clk 0:00:19.8]} 56.
Nxg3 {[%clk 0:00:18.7]} 56... Kf4 {[%clk 0:00:21.3]} 57. Nh5+ {[%clk 0:00:19.8]}
57... Kxf3 {[%clk 0:00:22.7]} 58. Nxf6 {[%clk 0:00:21.1]} 58... Kf4 {[%clk
0:00:21.2]} 59. Kd3 {[%clk 0:00:22.5]} 59... c4+ {[%clk 0:00:20.8]} 60. Kd4
{[%clk 0:00:23.9]} 60... c5+ {[%clk 0:00:19.3]} 61. Kxc4 {[%clk 0:00:24.8]}
61... Ke5 {[%clk 0:00:19.9]} 62. Kxc5 {[%clk 0:00:24.1]} 62... Kxf6 {[%clk
0:00:20.8]} 63. Kd6 {[%clk 0:00:26]} 63... Kf7 {[%clk 0:00:21.3]} 64. e5 {[%clk
0:00:27.9]} 64... Ke8 {[%clk 0:00:21.2]} 65. Ke6 {[%clk 0:00:29.3]} 1-0

[Event "*** Titled Tuesday 3|2 Blitz"]
[Site "Chess.com"]
[Date "2015.07.07"]
[Round "3"]
[White "Keranke"]
[Black "jbj"]
[Result "1-0"]
[WhiteElo "2543"]
[BlackElo "2262"]
[TimeControl "180+2"]
[EndTime "11:36:31 PDT"]
[Termination "Keranke won by checkmate"]

1. d4 {[%clk 0:03:01.9]} 1... Nf6 {[%clk 0:03:00.9]} 2. c4 {[%clk 0:03:03.1]}
2... e6 {[%clk 0:03:02.2]} 3. g3 {[%clk 0:03:04.2]} 3... d5 {[%clk 0:03:02.7]}
4. Bg2 {[%clk 0:03:05.4]} 4... Be7 {[%clk 0:03:04.1]} 5. Nf3 {[%clk 0:03:06.8]}
5... O-O {[%clk 0:03:05.6]} 6. O-O {[%clk 0:03:08.4]} 6... dxc4 {[%clk 0:03:07]}
7. Qc2 {[%clk 0:03:10]} 7... a6 {[%clk 0:03:08.3]} 8. Qxc4 {[%clk 0:03:11.3]}
8... b5 {[%clk 0:03:09.4]} 9. Qc2 {[%clk 0:03:13]} 9... Bb7 {[%clk 0:03:10.8]}
10. Bd2 {[%clk 0:03:14.2]} 10... Ra7 {[%clk 0:03:04.1]} 11. Rd1 {[%clk
0:03:13.7]} 11... Nbd7 {[%clk 0:03:01.4]} 12. Ba5 {[%clk 0:03:14.6]} 12... Be4
{[%clk 0:02:59.5]} 13. Qb3 {[%clk 0:03:14.9]} 13... Bd5 {[%clk 0:02:57.2]} 14.
Qe3 {[%clk 0:03:12.4]} 14... Qa8 {[%clk 0:02:54]} 15. b4 {[%clk 0:03:01.9]}
15... Nb6 {[%clk 0:02:49.4]} 16. Nbd2 {[%clk 0:03:01.8]} 16... Ne4 {[%clk
0:02:40.5]} 17. Bf1 {[%clk 0:02:03.9]} 17... Nd6 {[%clk 0:02:32.2]} 18. Ne5
{[%clk 0:01:55.4]} 18... f6 {[%clk 0:02:16.7]} 19. Bxb6 {[%clk 0:01:50.3]} 19...
cxb6 {[%clk 0:02:15.3]} 20. Nef3 {[%clk 0:01:38.7]} 20... Rc7 {[%clk 0:02:09.3]}
21. Bh3 {[%clk 0:01:24.8]} 21... Nf5 {[%clk 0:01:51.5]} 22. Qd3 {[%clk
0:01:21.2]} 22... Bxb4 {[%clk 0:01:46.1]} 23. e4 {[%clk 0:00:59.6]} 23... Bc4
{[%clk 0:01:35.2]} 24. Nxc4 {[%clk 0:00:59.8]} 24... bxc4 {[%clk 0:01:35.6]} 25.
Qb1 {[%clk 0:01:00.9]} 25... Bc3 {[%clk 0:01:34.8]} 26. exf5 {[%clk 0:00:58.8]}
26... Qxf3 {[%clk 0:01:30.9]} 27. fxe6 {[%clk 0:00:59.6]} 27... Bxa1 {[%clk
0:01:29.2]} 28. Qxa1 {[%clk 0:01:01.5]} 28... c3 {[%clk 0:01:22.6]} 29. Bg2
{[%clk 0:00:50.8]} 29... Qf5 {[%clk 0:01:11.4]} 30. d5 {[%clk 0:00:50]} 30... c2
{[%clk 0:01:10.5]} 31. Rc1 {[%clk 0:00:51.1]} 31... Rd8 {[%clk 0:01:07.2]} 32.
Qb2 {[%clk 0:00:28.6]} 32... Rxd5 {[%clk 0:01:07.4]} 33. Bxd5 {[%clk 0:00:30.5]}
33... Qxd5 {[%clk 0:01:08.2]} 34. e7 {[%clk 0:00:32]} 34... Rxe7 {[%clk
0:01:03.9]} 35. Qxc2 {[%clk 0:00:31.5]} 35... Qe6 {[%clk 0:00:58.1]} 36. a4
{[%clk 0:00:24]} 36... g6 {[%clk 0:00:55.4]} 37. Qd3 {[%clk 0:00:24.8]} 37... a5
{[%clk 0:00:43.1]} 38. h4 {[%clk 0:00:25.8]} 38... Kg7 {[%clk 0:00:43.1]} 39.
Qd4 {[%clk 0:00:21.9]} 39... Rd7 {[%clk 0:00:43.4]} 40. Qc3 {[%clk 0:00:19.3]}
40... Qe4 {[%clk 0:00:41.5]} 41. Qb3 {[%clk 0:00:14.9]} 41... Kh6 {[%clk
0:00:36.1]} 42. Qxb6 {[%clk 0:00:14.9]} 42... Qxa4 {[%clk 0:00:26.5]} 43. Qxf6
{[%clk 0:00:16]} 43... Qd4 {[%clk 0:00:19.9]} 44. Qg5+ {[%clk 0:00:16.3]} 44...
Kg7 {[%clk 0:00:20.3]} 45. Qxa5 {[%clk 0:00:17.9]} 45... Rf7 {[%clk 0:00:19.8]}
46. Qa2 {[%clk 0:00:18.4]} 46... Re7 {[%clk 0:00:16.7]} 47. Kh2 {[%clk
0:00:18.1]} 47... Rf7 {[%clk 0:00:17.1]} 48. Rc2 {[%clk 0:00:19]} 48... h6
{[%clk 0:00:16.5]} 49. Rd2 {[%clk 0:00:20.4]} 49... Qe5 {[%clk 0:00:16.4]} 50.
Qc2 {[%clk 0:00:20.7]} 50... Qf6 {[%clk 0:00:15.5]} 51. Re2 {[%clk 0:00:20.6]}
51... Re7 {[%clk 0:00:15.2]} 52. Rd2 {[%clk 0:00:21]} 52... Qe5 {[%clk
0:00:14.7]} 53. Kg1 {[%clk 0:00:12.2]} 53... Qe1+ {[%clk 0:00:14.7]} 54. Kh2
{[%clk 0:00:13.6]} 54... Qe5 {[%clk 0:00:16.1]} 55. Qa2 {[%clk 0:00:14.3]} 55...
Rf7 {[%clk 0:00:16.9]} 56. Qc4 {[%clk 0:00:14.6]} 56... Qf6 {[%clk 0:00:16.7]}
57. Qc5 {[%clk 0:00:15.5]} 57... Re7 {[%clk 0:00:14]} 58. Rd6 {[%clk 0:00:15.8]}
58... Qf3 {[%clk 0:00:11.2]} 59. Qd4+ {[%clk 0:00:14.6]} 59... Kh7 {[%clk
0:00:11.2]} 60. Rd8 {[%clk 0:00:15.8]} 60... Rg7 {[%clk 0:00:09.7]} 61. Rd6
{[%clk 0:00:17]} 61... Qf5 {[%clk 0:00:09.6]} 62. Rf6 {[%clk 0:00:17.3]} 62...
Qd7 {[%clk 0:00:08.1]} 63. Qe4 {[%clk 0:00:18.8]} 63... Qe7 {[%clk 0:00:07.6]}
64. Qf3 {[%clk 0:00:19.8]} 64... Qd7 {[%clk 0:00:08.6]} 65. h5 {[%clk 0:00:21]}
65... gxh5 {[%clk 0:00:09]} 66. Qxh5 {[%clk 0:00:22.2]} 66... Qg4 {[%clk
0:00:06.2]} 67. Rxh6+ {[%clk 0:00:22.4]} 67... Kg8 {[%clk 0:00:07.5]} 68. Rh8#
{[%clk 0:00:24.3]} 1-0